Cogmind - Beta 13 @@@ ROGUE MODE // 2024.03.06 @ 14:09:05 Player: Darch Result: Destroyed by S-10 Pest with Light Assault Rifle Performance ------------- Evolutions (1) 500 Regions Visited (2) 400 Robots Destroyed (15) 75 Value Destroyed (356) 356 Prototype IDs (2) 40 Alien Tech Used (0) 0 Bonus (0) 0 TOTAL SCORE: 1371 Bonus ------- None Cogmind --------- Core Integrity 0/400 Matter 300/300 Energy 100/100 System Corruption 0% Temperature Cool (0) Movement Core (350) Ox6 Location -9/Materials Parts ------- > --- POWER (1) -------- (None) > --- PROPULSION (3) --- (None) > --- UTILITY (3) ------ Large Storage Unit > --- WEAPON (2) ------- (None) > --- INVENTORY (15) --- Ion Engine Light Ion Engine Large Storage Unit Peak State ------------ > --- POWER ------------ Ion Engine > --- PROPULSION ------- Aluminum Leg Aluminum Leg > --- UTILITY ---------- Small Storage Unit Large Storage Unit > --- WEAPON ----------- Assault Rifle Light Assault Rifle > --- INVENTORY -------- Light Ion Engine [Rating: 7] Favorites ----------- Power Ion Engine Engine Ion Engine Propulsion Aluminum Leg Leg Aluminum Leg Utility Large Storage Unit Storage Large Storage Unit Weapon Light Assault Rifle Ballistic Gun Light Assault Rifle Build | -11 -10 -9 ------- Run | Yrd Mat Mat Slots Evolved 2 | . . 2 Power . | . . . Propulsion 1 | . . 1 Utility 1 | . . 1 Weapon . | . . . Parts Attached 11 | 6 4 1 Power 2 | 1 1 . Engine 2 | 1 1 . Core . | . . . Reactor . | . . . Propulsion 4 | 2 1 1 Treads . | . . . Leg 4 | 2 1 1 Wheel . | . . . Hover . | . . . Flight . | . . . Utility 2 | 1 1 . Device . | . . . Storage 2 | 1 1 . Processor . | . . . Hackware . | . . . Protection . | . . . Artifact . | . . . Weapon 3 | 2 1 . Energy Gun . | . . . Energy Cannon . | . . . Ballistic Gun 3 | 2 1 . Ballistic Cannon . | . . . Launcher . | . . . Special Weapon . | . . . Impact Weapon . | . . . Slashing Weapon . | . . . Piercing Weapon . | . . . Special Melee Weapon . | . . . Unidentified Prototypes . | . . . Parts Lost 7 | . 2 5 Power 1 | . . 1 Propulsion 4 | . 2 2 Utility . | . . . Weapon 2 | . . 2 Highest Loss Streak 2 | . 1 2 To Critical Strikes . | . . . Average Slot Usage (%) 70 | . 83 42 Engine 11 | . 14 5 Leg 21 | . 26 10 Storage 13 | . 14 11 Ballistic Gun 24 | . 28 15 Naked Turns . | . . . Heaviest Build 28 | 13 28 25 Greatest Support 20 | 20 20 10 Greatest Overweight (x) 6 | 3 2 6 Average Overweight (x) 1 | . . 1 Largest Inventory Capacity 15 | 8 15 15 Average Capacity 14 | 7 14 15 Most Carried 6 | 1 6 3 Average Carried 2 | . 2 3 Final Capacity 15 | 8 15 15 Final Carried 3 | 1 3 3 Class Distribution -------------------- 100% | Mutant Dominant Class ---------------- Mutant | -10/Materials Mutant | -9/Materials Resources | -11 -10 -9 ----------- Run | Yrd Mat Mat Matter Collected 401 | 199 182 20 Remotely . | . . . Salvage Created 376 | . 301 75 Parts 27 | . 24 3 Haulers Intercepted . | . . . Recyclers Shooed 1 | . 1 . Parts Field Recycled . | . . . Retrieved Matter . | . . . Parts Self-Destructed . | . . . Prevented . | . . . Kills | -11 -10 -9 ------- Run | Yrd Mat Mat Combat Hostiles Destroyed 14 | . 11 3 Melee 2 | . . 2 Guns 11 | . 10 1 AOE 1 | . 1 . Classes Destroyed 3 | . 3 . Worker 1 | . 1 . Swarmer 6 | . 6 . Grunt 8 | . 5 3 Best Kill Streak 4 | . 4 1 Combat Bots Only 3 | . 3 1 Max Kills in Single Turn 1 | . 1 1 Gunslinging . | . . . Exploded 1 | . 1 . Melee 1 | . . 1 Uniques/NPCs Destroyed . | . . . Combat | -11 -10 -9 -------- Run | Yrd Mat Mat Hostile Shots Fired 139 | . 59 80 Missed 23 | . 9 14 Damage Taken 1271 | . 560 711 Core 474 | . 73 401 Absorbed by Shields . | . . . Core Remaining (%) 85 | 100 70 . Volleys Fired 42 | . 35 7 Largest 2 | . 2 2 Hottest 40 | . 40 40 Shots Fired 84 | . 70 14 Gun 84 | . 70 14 Cannon . | . . . Launcher . | . . . Special . | . . . Kinetic 84 | . 70 14 Thermal . | . . . Explosive . | . . . Electromagnetic . | . . . Robot Hit Streak 9 | . 8 9 Robot Miss Streak 3 | . 3 3 Penetration Max . | . . . Secondary Targets . | . . . Shots Hit Robots 52 | . 42 10 Core Hits 40 | . 18 22 Critical Kills . | . . . Critical Parts Destroyed 1 | . 1 . Critical Strikes 1 | . 1 . Destroy 1 | . 1 . Melee Attacks . | . . . Impact . | . . . Slashing . | . . . Piercing . | . . . Sneak Attacks . | . . . Combat Hostiles . | . . . Follow-up Attacks . | . . . Damage Inflicted 718 | . 602 116 Guns 453 | . 378 75 Cannons . | . . . Explosions 188 | . 188 . Melee . | . . . Ramming 77 | . 36 41 Kinetic 453 | . 378 75 Thermal 188 | . 188 . Explosive . | . . . Electromagnetic . | . . . Impact . | . . . Slashing . | . . . Piercing . | . . . Highest Corruption . | . . . Average Corruption . | . . . Corruption Purged . | . . . Corruption Blocked . | . . . Overload Shots . | . . . Overflow Damage 31 | . 31 . Projectiles . | . . . Explosions 31 | . 31 . Melee . | . . . Knockbacks 1 | . 1 . Impact 1 | . 1 . Kinetic . | . . . Secondary . | . . . Self-Inflicted Damage 108 | . 108 . Shots 1 | . 1 . Rammed 4 | . . 4 Targets Rammed 35 | . 8 27 Kicked 31 | . 8 23 Crushed . | . . . Highest Temperature 19 | . 19 . Average Temperature 8 | . 8 . Received Heat Transfer 426 | . 96 330 Siege Activations . | . . . Robots Corrupted . | . . . Combat Hostiles . | . . . Parts Fried . | . . . Impact Corruptions . | . . . Robots Melted . | . . . Combat Hostiles . | . . . Parts Melted 1 | . 1 . Heat Transferred 100 | . 100 . Parts Sabotaged . | . . . Parts Stolen . | . . . Parts Stripped . | . . . Power Chain Reactions . | . . . Alert | -11 -10 -9 ------- Run | Yrd Mat Mat Peak Influence 226 | . 226 154 Initial 94 | . . 94 Average 84 | . 81 107 Maximum Alert Level 1 | . 1 . Low Security (%) 94 | 100 91 100 Level 1 5 | . 8 . Level 2 . | . . . Level 3 . | . . . Level 4 . | . . . Level 5 . | . . . High Security . | . . . Max Security . | . . . Squads Dispatched 2 | . 1 1 Investigation 2 | . 1 1 Extermination . | . . . Reinforcement . | . . . Assault . | . . . Garrison . | . . . Intercept . | . . . Searches Triggered . | . . . Construction Impeded . | . . . Haulers Reinforced . | . . . Active Scanning Responses . | . . . Cargo Convoy Interrupts . | . . . Stealth | -11 -10 -9 --------- Run | Yrd Mat Mat Distress Signals 1 | . 1 . Communications Jammed . | . . . Distress Signals . | . . . Times Spotted 22 | . 14 8 Peak Tracking Total 4 | . 4 4 Tactical Retreats 2 | . 1 1 Traps | -11 -10 -9 ------- Run | Yrd Mat Mat Traps Triggered 2 | . 1 1 Indirectly . | . . . Trap Hack Attempts . | . . . Triggered . | . . . Disarmed . | . . . Reprogrammed . | . . . Reused . | . . . Traps Extracted . | . . . Installed . | . . . Triggered . | . . . Machines | -11 -10 -9 ---------- Run | Yrd Mat Mat Machines Disabled 1 | . 1 . Max in Single Turn 1 | . 1 . Machines Repaired . | . . . Machines Dismantled . | . . . Machines Sabotaged . | . . . Overloaded Fab Kills . | . . . Hacking | -11 -10 -9 --------- Run | Yrd Mat Mat Machines Accessed 3 | . 2 1 Terminals 3 | . 2 1 Fabricators . | . . . Repair Stations . | . . . Recycling Units . | . . . Scanalyzers . | . . . Garrison Access . | . . . Total Hacks 7 | . 5 2 Successful 3 | . 3 . Failed 4 | . 2 2 Catastrophic 1 | . . 1 Database Lockouts . | . . . Manual 4 | . 3 1 Terminals 7 | . 5 2 Fabricators . | . . . Repair Stations . | . . . Recycling Units . | . . . Scanalyzers . | . . . Garrison Access . | . . . Terminal Hacks 3 | . 3 . Prototype ID Bank 1 | . 1 . Dispatch Records 1 | . 1 . Patrol Status 1 | . 1 . Fabricator Hacks . | . . . Repair Station Hacks . | . . . Recycling Unit Hacks . | . . . Scanalyzer . | . . . Garrison Access Hacks . | . . . Unauthorized Hacks . | . . . Terminals . | . . . Fabricators . | . . . Repair Stations . | . . . Recycling Units . | . . . Scanalyzers . | . . . Garrison Access . | . . . Data Cores Recovered . | . . . Used . | . . . Hacking Detections 2 | . 1 1 Full Trace Events . | . . . Feedback Events . | . . . Feedback Blocked . | . . . Robot Schematics Acquired . | . . . Robots Built . | . . . Authchips . | . . . Time . | . . . Total Robot Build Rating . | . . . Part Schematics Acquired . | . . . Parts Built . | . . . Authchips . | . . . Time . | . . . Total Part Build Rating . | . . . Parts Repaired . | . . . Time . | . . . Parts Recycled . | . . . Recycled Matter . | . . . Retrieved Matter . | . . . Retrieved Components . | . . . Parts Scanalyzed . | . . . Part Schematics Acquired . | . . . Parts Damaged . | . . . Bothacking | -11 -10 -9 ------------ Run | Yrd Mat Mat Used RIF Installer . | . . . Robots Hacked . | . . . Non-combat . | . . . Combat . | . . . Robot Hacks Applied . | . . . Relay Couplers Released . | . . . Fabnet Peak Effective % . | . . . Robots Rewired . | . . . Allies Hacked . | . . . Hacks Repelled . | . . . Allies | -11 -10 -9 -------- Run | Yrd Mat Mat Total Allies . | . . . Largest Group . | . . . Highest-Rated Group . | . . . Highest-Rated Ally . | . . . Total Orders . | . . . Ally Attacks . | . . . Total Damage . | . . . Kills . | . . . Allies Corrupted . | . . . Allies Melted . | . . . Intel | -11 -10 -9 ------- Run | Yrd Mat Mat Robot Analysis Total . | . . . Derelict Logs Recovered . | . . . Drone Launches . | . . . Drone Recoveries . | . . . Exploration | -11 -10 -9 ------------- Run | Yrd Mat Mat Turns Passed 1216 | 72 784 360 Spaces Moved 522 | 49 359 114 Core 7 | 5 . 2 Treads . | . . . Legs 515 | 44 359 112 Wheels . | . . . Hover . | . . . Flight . | . . . Fastest Speed 50 | 50 120 190 Average Speed 190 | 127 179 249 Slowest Speed 350 | 200 260 350 Overloaded Moves . | . . . Propulsion Burnouts . | . . . Robots Hopped . | . . . Cave-ins Triggered . | . . . Exploration Rate (%) 24 | 4 53 15 Regions Visited 2 Branch Regions . Pre-discovered Areas . | . . . Known Exits Taken . | . . . Unknown Exits Taken 2 | 1 1 . Scrap Searched . | . . . Spaces Dug . | . . . Terrain Destroyed 16 | . 16 . Melee . | . . . Projectile . | . . . AOE 16 | . 16 . Terrain Rammed . | . . . Walls Destroyed . | . . . Machines Disabled . | . . . Actions | -11 -10 -9 --------- Run | Yrd Mat Mat Total 637 | 55 433 149 Wait 18 | . 18 . Move 520 | 48 358 114 Hop . | . . . Pick Up 5 | 1 4 . Fast Attach 9 | 6 2 1 Attach 2 | . 2 . Detach 3 | . 3 . Swap . | . . . Drop 3 | . 3 . Fire 42 | . 35 7 Melee . | . . . Ram 4 | . . 4 Kick 31 | . 8 23 Crush . | . . . Escape Stasis . | . . . Rewire . | . . . Trap . | . . . Miscellaneous . | . . . Route ------- -11/Scrapyard -10/Materials (discovered 3 exits: *Mat x2 / [*Min]) -9/Materials History --------- Turn | Location | Event 12 | -11/Scrapyard | Discovered new exit (range 15) 73 | -11/Scrapyard | Entered Materials 308 | -10/Materials | Build established: Mutant 376 | -10/Materials | Discovered new exit (range 3) 468 | -10/Materials | Discovered new exit (range 14) 839 | -10/Materials | Discovered new exit (range 5) 857 | -10/Materials | Entered another Materials area 857 | -9/Materials | Evolved 2 slots: Propulsion x1, Utility x1 1157 | -9/Materials | Core integrity fell below 50% 1170 | -9/Materials | Core integrity fell below 20% 1217 | -9/Materials | Destroyed by S-10 Pest with Light Assault Rifle Last Messages --------------- 01166_ Destabilizing: Core damaged (-20). 01170_ K-01 Serf collects debris. 01173_ Acquired Aluminum Leg. 01174_ Acquired 10 matter. 01176_ K-01 Serf collects debris. 01178_ Kicked G-34 Mercenary out of the way. 01179_ K-01 Serf collects debris. 01180_ Kicked G-34 Mercenary. 01181_ K-01 Serf collects debris. 01182_ Kicked G-34 Mercenary out of the way. 01184_ Kicked G-34 Mercenary. 01186_ K-01 Serf collects debris. 01186_ Kicked G-34 Mercenary. 01188_ K-01 Serf collects debris. 01190_ Kicked G-34 Mercenary. 01193_ Kicked G-34 Mercenary out of the way. 01195_ G-34 Mercenary destroyed. 01213_ K-01 Serf collects debris. 01215_ Aluminum Leg destroyed. Map ----- +----------------------------------------------------+ | ?????????????????????????????????????????????????? | | ?????????????????????????????????????????????????? | | ?????????????????????????????????????????????????? | | ?????????????????????????????????????????????????? | | ?????????????????????????????????????????????????? | | ?????????????????????????????????????????????????? | | ?????????????????????????????????????????????????? | | ?????????????????????????????????????????????????? | | ?????????????????????????????????????????????????? | | ?????????????????????????????????????????????????? | | ?????????????????????????????????????????????????? | | ??????????????????????????? k ???????????????????? | | ??????????????????????????? #??????????????????? | | ??????????????????????????? #??????????????????? | | ??????????????????????????? ####+###???????????? | | ??????????????????????????? ???????????? | | ??????????????????????????? ???????????? | | ?????????????#+############ ???????????? | | ?????????????? #???????????? | | ??????????????? #???????????? | | ????????????????? !! #???????????? | | ??????????????????# ] ! """"" #???????????? | | ??????????????????# """"" #???????????? | | ??????????????????# """"" #???????????? | | ??????????????????# #???????????? | | ??????????????????# @ w #??########## | | ???????????????##?#+## #?# # | | ???????????????? ??#t #?# # | | ????????????????? ?# s#######+##### # | | ??????????????????? # %s#?# # """ """ # | | ?????????????????? + m #?# # """ """ # | | ??????????????? # %%#?# # """ """ # | | ???????????? ?### k%#?# """ """ # # | | ????????????? ????# %s### """ """ # % # | | ????????????? ??????#[%%%%+ """ """ ####+###### | | ??????????????##???????###%### + % """"" | | ?????????????????????????# #?# ### ""T"" | | ?????????????????????????# #?###########?# | | ?????????????????????????# #?????????????# | | ?????????????????????????# #???########### | | ????????????????????????? ?? | | ????????????????????????? ?? | | ????????????????????????? ?? """ | | ????????????????????????? ?? """ | | ?????????????????????????# ?? """ | | ?????????????????????????? ? | | ?????????????????????????? ? | | ?????????????????????????? ???########## """ | | ?????????????????????????? ????????????# """ | | ?????????????????????????? ????????????# """ | +----------------------------------------------------+ Best States ------------- Heat Dissipation 28 Energy Generation 10 Energy Capacity 250 Matter Stores 300 Matter Capacity 300 Sight Range 16 Terrain Scan Density 10 Evasion (%) 55 Item Schematics ----------------- None Robot Schematics ------------------ None Fabricated ------------ Nothing Alien Tech Used ----------------- None Achievements -------------- Fist Fight Challenges ------------ None Game ------ Seed SpreadFluxHumpback Manual? 0 Play Time 00:17:11 Cumulative 5.8 hours Start 2024.03.06 @ 11:21:16 End 2024.03.06 @ 14:09:05 Sessions 2 Manual Loads 0 Difficulty Rogue Special Mode None Game No. 8 Rogue 7 Adventurer 1 Explorer 0 Win Type - Total 0 Types 0/0/0/0/0/0/0/0/0 Lore% 1 Gallery% 6 Achievement% 7 Wizard Run 0 Options --------- Layout 1 ASCII 0 Keyboard 1 Movement Vi Keybinds 0 Fullscreen 2 Font 24/Smallcaps Map View 50x40 Zoom Use 0% Tactical HUD 1 Map Filters NONE Filters NONE Steam 1 RUN: 60e5df41-c768-467c-b754-78fd7ed8365e